Cogmind - Beta 12 @@@ ROGUE MODE // 2023.12.17 @ 06:18:21 Player: puppuppit Result: Destroyed by P-60 Hacker with Shock Rifle Performance ------------- Evolutions (3) 1500 Regions Visited (7) 1400 Robots Destroyed (52) 260 Value Destroyed (1743) 1743 Prototype IDs (28) 560 Alien Tech Used (0) 0 Bonus (275) 275 TOTAL SCORE: 5738 Bonus ------- High Alert Combat Kills 45 Follower Combat Kills 90 Aligned with FarCom 300 Friendly Fire -160 Cogmind --------- Core Integrity 0/700 Matter 265/300 Energy 99/100 System Corruption 8% Temperature Cool (0) Movement Core (50) Location -7/Factory Parts ------- > --- POWER (1) -------- (None) > --- PROPULSION (4) --- (None) > --- UTILITY (6) ------ Advanced Targeting Computer Recoil Stabilizer Hacking Suite > --- WEAPON (2) ------- (None) > --- INVENTORY (5) ---- Micro Nuclear Core Superbattery (1500) ECM Suite Gauss Rifle Peak State ------------ > --- POWER ------------ Light Nuclear Core > --- PROPULSION ------- Backup Propulsion I Airjet > --- UTILITY ---------- Advanced Visual Processing Unit Layered Light Armor Plating System Shield System Shield > --- WEAPON ----------- Assault Cannon Shock Bomb Launcher > --- INVENTORY -------- Superbattery Experimental Sensor Array System Restoration Module Improved Datajack [Rating: 28] Favorites ----------- Power Light Nuclear Core Engine Light Ion Engine Power Core Light Nuclear Core Propulsion Backup Propulsion I Wheel Wheel Hover Unit Backup Propulsion I Flight Unit VTOL Module Utility System Shield Device Tractor Beam Storage Compact Matter Pod Processor Advanced Visual Processing Unit Hackware System Shield Protection Layered Light Armor Plating Weapon Assault Cannon Energy Gun Backup Laser I Energy Cannon Ion Cannon Ballistic Gun Light Assault Rifle Ballistic Cannon Assault Cannon Launcher Rocket Launcher Special Melee Weapon Improved Datajack Build | -11 -10 -10 -10 -9 -8 -8 -7 ------- Run | Jun Mat Min Exi Min Mat Sto Fac Slots Evolved 6 | . . . . . 4 . 2 Power . | . . . . . . . . Propulsion 2 | . . . . . 2 . . Utility 4 | . . . . . 2 . 2 Weapon . | . . . . . . . . Parts Attached 79 | 6 6 1 . 1 3 33 29 Power 14 | 2 . . . . 1 6 5 Engine 7 | 2 . . . . 1 2 2 Core 7 | . . . . . . 4 3 Reactor . | . . . . . . . . Propulsion 10 | 2 2 . . . . 2 4 Treads . | . . . . . . . . Leg . | . . . . . . . . Wheel 2 | 2 . . . . . . . Hover 6 | . 2 . . . . 2 2 Flight 2 | . . . . . . . 2 Utility 21 | . 2 . . 1 2 9 7 Device 8 | . 1 . . . . 2 5 Storage 2 | . 1 . . . . 1 . Processor 4 | . . . . . 1 2 1 Hackware 4 | . . . . . 1 2 1 Protection 3 | . . . . 1 . 2 . Artifact . | . . . . . . . . Weapon 34 | 2 2 1 . . . 16 13 Energy Gun 4 | 1 . . . . . 1 2 Energy Cannon 1 | . . . . . . 1 . Ballistic Gun 10 | 1 1 . . . . 4 4 Ballistic Cannon 8 | . . . . . . 2 6 Launcher 7 | . 1 1 . . . 5 . Special Weapon . | . . . . . . . . Impact Weapon . | . . . . . . . . Slashing Weapon . | . . . . . . . . Piercing Weapon . | . . . . . . . . Special Melee Weapon 4 | . . . . . . 3 1 Unidentified Prototypes 1 | . . . . . . 1 . Corrupted Parts 1 | . . . . . . . 1 System Corruption 5 | . . . . . . . 5 Parts Lost 30 | . 2 . . . 1 18 9 Power 4 | . 1 . . . . 3 . Propulsion 9 | . 1 . . . 1 4 3 Utility 8 | . . . . . . 6 2 Weapon 9 | . . . . . . 5 4 Highest Loss Streak 5 | . 2 . . . 1 5 3 To Critical Strikes 1 | . . . . . . 1 . Average Slot Usage (%) 55 | . 75 57 57 59 38 62 25 Engine 1 | . 10 . . . 2 1 . Core 3 | . . . . . . 6 . Wheel 1 | . 19 . . . . . . Hover 9 | . 4 14 14 14 6 11 . Device 5 | . 12 14 14 14 7 2 2 Processor 4 | . . . . . . 7 3 Hackware 9 | . . . . . . 17 6 Protection 2 | . . . . 2 7 4 . Ballistic Gun 6 | . 20 14 14 14 7 2 3 Ballistic Cannon 2 | . . . . . . 4 1 Launcher 4 | . 4 14 14 14 6 1 . Naked Turns . | . . . . . . . . Heaviest Build 15 | 6 8 6 6 10 10 15 9 Greatest Support 26 | 26 26 6 6 6 6 20 7 Greatest Overweight (x) 3 | . 1 . . 1 1 3 2 Average Overweight (x) . | . . . . . . . . Largest Inventory Capacity 5 | 5 5 5 5 5 5 5 5 Average Capacity 5 | 5 5 5 5 5 5 5 5 Most Carried 5 | 1 4 5 5 5 5 5 5 Average Carried 4 | . 1 4 4 5 4 4 4 Final Capacity 5 | 5 5 5 5 5 5 5 5 Final Carried 5 | 1 4 5 5 5 5 5 4 Class Distribution -------------------- 54% | Mutant 45% | Hacker-Mutant Dominant Class ---------------- Mutant | -10/Materials Mutant | -10/Mines Mutant | -10/Exiles Mutant | -9/Mines Mutant | -8/Materials Hacker-Mutant | -8/Storage Mutant | -7/Factory Resources | -11 -10 -10 -10 -9 -8 -8 -7 ----------- Run | Jun Mat Min Exi Min Mat Sto Fac Matter Collected 1844 | 228 . 16 . 25 55 1146 374 Remotely 96 | . . 16 . 25 55 . . Salvage Created 1796 | . 59 . . . 32 1047 658 Parts 106 | . 10 . . . . 56 40 Haulers Intercepted . | . . . . . . . . Recyclers Shooed 3 | . 1 . . . . 2 . Parts Field Recycled . | . . . . . . . . Retrieved Matter . | . . . . . . . . Parts Self-Destructed . | . . . . . . . . Prevented . | . . . . . . . . Kills | -11 -10 -10 -10 -9 -8 -8 -7 ------- Run | Jun Mat Min Exi Min Mat Sto Fac Combat Hostiles Destroyed 34 | . 3 . . . 1 21 9 Guns 11 | . 1 . . . . 4 6 Cannons 13 | . . . . . . 10 3 AOE 10 | . 2 . . . 1 7 . Classes Destroyed 12 | . 4 . . . 1 6 1 Worker 3 | . 1 . . . . 2 . Builder 2 | . . . . . . 1 1 Recycler 4 | . . . . . . 2 2 Operator 4 | . 1 . . . . 2 1 Watcher 4 | . 1 . . . . 2 1 Swarmer 6 | . 3 . . . . . 3 Grunt 10 | . . . . . 1 9 . Brawler 1 | . . . . . . 1 . Duelist 1 | . . . . . . 1 . Sentry 13 | . . . . . . 9 4 Hunter 1 | . . . . . . 1 . Programmer 2 | . . . . . . . 2 Thug 1 | . . . . . . 1 . Best Kill Streak 8 | . 6 . . . 1 8 7 Combat Bots Only 5 | . 3 . . . 1 4 5 Max Kills in Single Turn 3 | . 2 . . . 1 3 2 Gunslinging . | . . . . . . . . Exploded 2 | . 1 . . . 1 2 . Melee . | . . . . . . . . Uniques/NPCs Destroyed . | . . . . . . . . Combat | -11 -10 -10 -10 -9 -8 -8 -7 -------- Run | Jun Mat Min Exi Min Mat Sto Fac Damage Taken 3287 | . 137 . . 21 139 1639 1351 Core 1231 | . 24 . . . 44 455 708 Absorbed by Shields . | . . . . . . . . Regen/Repaired (Parts) 137 | . . . . . . . 137 Core Remaining (%) 66 | 100 . . . 90 . 9 . Volleys Fired 149 | . 6 . . . 4 107 32 Largest 2 | . 2 . . . 2 2 2 Hottest 93 | . 50 . . . 53 93 72 Shots Fired 193 | . 11 . . . 8 133 41 Gun 80 | . 6 . . . 4 40 30 Cannon 79 | . . . . . . 68 11 Launcher 34 | . 5 . . . 4 25 . Special . | . . . . . . . . Kinetic 132 | . 6 . . . 4 90 32 Thermal 18 | . . . . . . 18 . Explosive 30 | . 5 . . . 4 21 . Electromagnetic 13 | . . . . . . 4 9 Robot Hit Streak 15 | . 2 . . . 3 15 13 Robot Miss Streak 4 | . 2 . . . 1 4 2 Penetration Max 1 | . . . . . . . 1 Secondary Targets . | . . . . . . . . Shots Hit Robots 123 | . 3 . . . 4 74 42 Core Hits 100 | . 12 . . . 7 57 24 Critical Kills . | . . . . . . . . Critical Parts Destroyed . | . . . . . . . . Critical Strikes 3 | . . . . . . 2 1 Blast 3 | . . . . . . 2 1 Melee Attacks 13 | . . . . . . 4 9 Impact . | . . . . . . . . Slashing . | . . . . . . . . Piercing . | . . . . . . . . Sneak Attacks 13 | . . . . . . 4 9 Combat Hostiles . | . . . . . . . . Follow-up Attacks . | . . . . . . . . Damage Inflicted 4434 | . 370 . . . 349 2809 906 Guns 1077 | . 27 . . . 8 429 613 Cannons 1201 | . . . . . . 945 256 Explosions 2156 | . 343 . . . 341 1435 37 Melee . | . . . . . . . . Ramming . | . . . . . . . . Kinetic 1947 | . 27 . . . 8 1212 700 Thermal 199 | . . . . . . 162 37 Explosive 1717 | . 213 . . . 341 1163 . Electromagnetic 571 | . 130 . . . . 272 169 Impact . | . . . . . . . . Slashing . | . . . . . . . . Piercing . | . . . . . . . . Highest Corruption 12 | . . . . . . 12 8 Average Corruption 5 | . . . . . . 8 4 Corruption Purged . | . . . . . . . . Corruption Blocked . | . . . . . . . . Effects 10 | . . . . . . 3 7 Message Errors 1 | . . . . . . . 1 Matter Fused 3 | . . . . . . . 3 Heat Flow Errors 1 | . . . . . . . 1 Energy Discharges 1 | . . . . . . 1 . Data Loss (minor) 3 | . . . . . . 2 1 Weapon Failures 1 | . . . . . . . 1 Overload Shots . | . . . . . . . . Overflow Damage 96 | . 7 . . . . 89 . Projectiles 59 | . . . . . . 59 . Explosions 37 | . 7 . . . . 30 . Melee . | . . . . . . . . Knockbacks 7 | . . . . . . 4 3 Impact . | . . . . . . . . Kinetic 6 | . . . . . . 4 2 Secondary 1 | . . . . . . . 1 Self-Inflicted Damage 128 | . 33 . . . . 60 35 Shots 7 | . 2 . . . . 4 1 Rammed . | . . . . . . . . Targets Rammed . | . . . . . . . . Kicked . | . . . . . . . . Crushed . | . . . . . . . . Highest Temperature 152 | . 24 . . . 11 107 152 Average Temperature 28 | . 8 . . . 3 29 38 Received Heat Transfer 1005 | . . . . . 81 756 168 Siege Activations . | . . . . . . . . Robots Corrupted . | . . . . . . . . Combat Hostiles . | . . . . . . . . Parts Fried . | . . . . . . . . Impact Corruptions . | . . . . . . . . Robots Melted . | . . . . . . . . Combat Hostiles . | . . . . . . . . Parts Melted . | . . . . . . . . Heat Transferred 420 | . . . . . . 370 50 Parts Sabotaged . | . . . . . . . . Parts Stolen . | . . . . . . . . Parts Stripped . | . . . . . . . . Power Chain Reactions 1 | . . . . . . . 1 Missiles Intercepted . | . . . . . . . . Alert | -11 -10 -10 -10 -9 -8 -8 -7 ------- Run | Jun Mat Min Exi Min Mat Sto Fac Peak Influence 501 | . 181 70 . . 48 501 398 Initial 124 | . . 70 . . . 15 124 Average 214 | . 50 70 . . 13 286 213 Maximum Alert Level 2 | . . . . . . 2 1 Low Security (%) 44 | 100 100 100 . 100 100 21 45 Level 1 52 | . . . . . . 73 54 Level 2 2 | . . . . . . 5 . Level 3 . | . . . . . . . . Level 4 . | . . . . . . . . Level 5 . | . . . . . . . . High Security . | . . . . . . . . Max Security . | . . . . . . . . Squads Dispatched 10 | . 1 . . . 1 5 3 Investigation 3 | . 1 . . . 1 1 . Extermination 2 | . . . . . . . 2 Reinforcement 3 | . . . . . . 2 1 Assault 2 | . . . . . . 2 . Garrison . | . . . . . . . . Intercept . | . . . . . . . . Searches Triggered . | . . . . . . . . Construction Impeded . | . . . . . . . . Haulers Reinforced . | . . . . . . . . Active Scanning Responses . | . . . . . . . . Cargo Convoy Interrupts . | . . . . . . . . Stealth | -11 -10 -10 -10 -9 -8 -8 -7 --------- Run | Jun Mat Min Exi Min Mat Sto Fac Distress Signals 4 | . 1 . . . . 3 . Communications Jammed . | . . . . . . . . Distress Signals . | . . . . . . . . Times Spotted 64 | . 6 . . . 5 39 14 Peak Tracking Total 6 | . 5 . . . 5 6 4 Tactical Retreats 4 | . 1 . . . . 3 . Traps | -11 -10 -10 -10 -9 -8 -8 -7 ------- Run | Jun Mat Min Exi Min Mat Sto Fac Traps Triggered 3 | . 1 . . 1 . 1 . Indirectly 1 | . 1 . . . . . . Trap Hack Attempts 5 | . . . . . . 5 . Triggered . | . . . . . . . . Disarmed 2 | . . . . . . 2 . Reprogrammed 1 | . . . . . . 1 . Reused 1 | . . . . . . 1 . Traps Extracted . | . . . . . . . . Installed . | . . . . . . . . Triggered 1 | . . . . . . 1 . Machines | -11 -10 -10 -10 -9 -8 -8 -7 ---------- Run | Jun Mat Min Exi Min Mat Sto Fac Machines Disabled 8 | . 3 . . . . 3 2 Max in Single Turn 2 | . 2 . . . . 1 1 Machines Repaired . | . . . . . . . . Machines Sabotaged . | . . . . . . . . Overloaded Fab Kills . | . . . . . . . . Hacking | -11 -10 -10 -10 -9 -8 -8 -7 --------- Run | Jun Mat Min Exi Min Mat Sto Fac Machines Accessed 34 | . 6 . 5 1 1 12 9 Terminals 21 | . 6 . . . 1 8 6 Fabricators . | . . . . . . . . Repair Stations 4 | . . . . . . 2 2 Recycling Units 2 | . . . . . . 2 . Scanalyzers 1 | . . . . . . . 1 Garrison Access . | . . . . . . . . Total Hacks 134 | . 19 . 50 1 2 34 28 Successful 78 | . 8 . 50 1 . 13 6 Failed 56 | . 11 . . . 2 21 22 Catastrophic 11 | . . . . . 1 4 6 Database Lockouts . | . . . . . . . . Manual 9 | . . . 1 . 2 3 3 Terminals 62 | . 19 . . . 2 23 18 Fabricators . | . . . . . . . . Repair Stations 15 | . . . . . . 8 7 Recycling Units 3 | . . . . . . 3 . Scanalyzers 3 | . . . . . . . 3 Garrison Access . | . . . . . . . . Terminal Hacks 69 | . 8 . 50 1 . 8 2 Record 52 | . 2 . 49 . . 1 . Part Schematic 1 | . . . . . . . 1 Robot Analysis 2 | . 1 . . . . 1 . Prototype ID Bank 3 | . 2 . . . . 1 . Open Door 2 | . . . . 1 . 1 . Level Access Points 1 | . . . . . . 1 . Branch Access Points 1 | . 1 . . . . . . Terminal Index 2 | . 1 . . . . . 1 Locate Traps 1 | . . . . . . 1 . Zone Layout 3 | . 1 . . . . 2 . EX-Prototype ID Bank 1 | . . . 1 . . . . Fabricator Hacks . | . . . . . . . . Repair Station Hacks 4 | . . . . . . 2 2 Scan Component 1 | . . . . . . . 1 Repair 1 | . . . . . . . 1 Refit 2 | . . . . . . 2 . Recycling Unit Hacks 3 | . . . . . . 3 . Report Inventory 1 | . . . . . . 1 . Retrieve Components 2 | . . . . . . 2 . Scanalyzer 2 | . . . . . . . 2 Insert Component 1 | . . . . . . . 1 Analyze 1 | . . . . . . . 1 Garrison Access Hacks . | . . . . . . . . Unauthorized Hacks . | . . . . . . . . Terminals . | . . . . . . . . Fabricators . | . . . . . . . . Repair Stations . | . . . . . . . . Recycling Units . | . . . . . . . . Scanalyzers . | . . . . . . . . Garrison Access . | . . . . . . . . Data Cores Recovered 1 | . 1 . . . . . . Used . | . . . . . . . . Hacking Detections 25 | . 6 . . . 1 9 9 Full Trace Events 1 | . . . . . 1 . . Feedback Events . | . . . . . . . . Feedback Blocked . | . . . . . . . . Robot Schematics Acquired . | . . . . . . . . Robots Built . | . . . . . . . . Authchips . | . . . . . . . . Time . | . . . . . . . . Total Robot Build Rating . | . . . . . . . . Part Schematics Acquired 2 | . . . . . . . 2 Parts Built . | . . . . . . . . Authchips . | . . . . . . . . Time . | . . . . . . . . Total Part Build Rating . | . . . . . . . . Parts Repaired 1 | . . . . . . . 1 Time 38 | . . . . . . . 38 Parts Recycled . | . . . . . . . . Recycled Matter . | . . . . . . . . Retrieved Matter . | . . . . . . . . Retrieved Components 4 | . . . . . . 4 . Parts Scanalyzed 1 | . . . . . . . 1 Part Schematics Acquired 1 | . . . . . . . 1 Parts Damaged . | . . . . . . . . Bothacking | -11 -10 -10 -10 -9 -8 -8 -7 ------------ Run | Jun Mat Min Exi Min Mat Sto Fac Used RIF Installer . | . . . . . . . . Robots Hacked 7 | . . . . . . 2 5 Non-combat 7 | . . . . . . 2 5 Combat . | . . . . . . . . Robot Hacks Applied 12 | . . . . . . 3 9 no_distress 7 | . . . . . . 2 5 find_chute 1 | . . . . . . . 1 find_fabricator 1 | . . . . . . . 1 find_dsf 1 | . . . . . . . 1 find_recycling 2 | . . . . . . 1 1 Relay Couplers Released . | . . . . . . . . Fabnet Peak Effective % . | . . . . . . . . Robots Rewired 1 | . . . . . . . 1 Allies Hacked . | . . . . . . . . Hacks Repelled . | . . . . . . . . Allies | -11 -10 -10 -10 -9 -8 -8 -7 -------- Run | Jun Mat Min Exi Min Mat Sto Fac Total Allies 4 | . . 1 . . . 2 1 Largest Group 2 | . . 1 1 . . 2 1 Highest-Rated Group 62 | . . 31 31 . . 62 12 Highest-Rated Ally 31 | . . 31 31 . . 31 12 Total Orders . | . . . . . . . . Ally Attacks 16 | . . . . . . 12 4 Total Damage 211 | . . . . . . 182 29 Kills 3 | . . . . . . 3 . Allies Corrupted . | . . . . . . . . Allies Melted . | . . . . . . . . Intel | -11 -10 -10 -10 -9 -8 -8 -7 ------- Run | Jun Mat Min Exi Min Mat Sto Fac Robot Analysis Total 2 | . 1 . . . . 1 . Derelict Logs Recovered 1 | . . 1 . . . . . Drone Launches . | . . . . . . . . Drone Recoveries . | . . . . . . . . Exploration | -11 -10 -10 -10 -9 -8 -8 -7 ------------- Run | Jun Mat Min Exi Min Mat Sto Fac Turns Passed 3180 | 38 295 196 301 57 96 1609 588 Spaces Moved 3181 | 32 320 244 495 52 82 1240 716 Core 601 | 1 . . . . 41 343 216 Treads . | . . . . . . . . Legs . | . . . . . . . . Wheels 228 | 31 197 . . . . . . Hover 1888 | . 123 244 495 52 41 897 36 Flight 464 | . . . . . . . 464 Fastest Speed 35 | 50 56 60 60 60 50 50 35 Average Speed 62 | 87 78 60 60 71 85 68 42 Slowest Speed 200 | 90 125 60 60 120 120 200 150 Overloaded Moves . | . . . . . . . . Propulsion Burnouts . | . . . . . . . . Robots Hopped 6 | . . . . . . . 6 Cave-ins Triggered . | . . . . . . . . Time Travels 1 | . . . 1 . . . . Exploration Rate (%) 41 | 3 50 58 89 12 8 90 18 Regions Visited 7 Branch Regions 4 Pre-discovered Areas 2 | . . 1 1 . . . . Known Exits Taken 2 | . 1 . . . . 1 . Unknown Exits Taken 5 | 1 . 1 1 1 1 . . Scrap Searched 2 | . . 1 . 1 . . . Spaces Dug 4 | . . . . . . 4 . Terrain Destroyed 192 | . 24 . . . 32 132 4 Melee . | . . . . . . . . Projectile 11 | . . . . . . 11 . AOE 181 | . 24 . . . 32 121 4 Terrain Rammed . | . . . . . . . . Walls Destroyed . | . . . . . . . . Machines Disabled . | . . . . . . . . Actions | -11 -10 -10 -10 -9 -8 -8 -7 --------- Run | Jun Mat Min Exi Min Mat Sto Fac Total 4176 | 39 352 293 499 72 102 1862 957 Wait 679 | . 15 45 2 18 9 445 145 Move 3164 | 31 319 243 494 51 81 1239 706 Hop 4 | . . . . . . . 4 Pick Up 19 | 1 2 2 2 1 . 6 5 Fast Attach 50 | 6 5 . . 1 2 21 15 Attach 22 | . . . . . 1 7 14 Detach 25 | . 1 . . . 2 6 16 Swap 7 | . 1 1 . . . 5 . Drop 38 | 1 3 2 1 1 3 17 10 Fire 149 | . 6 . . . 4 107 32 Melee 13 | . . . . . . 4 9 Ram . | . . . . . . . . Kick . | . . . . . . . . Crush . | . . . . . . . . Escape Stasis . | . . . . . . . . Rewire 1 | . . . . . . . 1 Trap 5 | . . . . . . 5 . Miscellaneous . | . . . . . . . . Route ------- -11/Junkyard -10/Materials (discovered 2 exits: [*Mat] / *Min) -10/Mines -10/Exiles -9/Mines -8/Materials (discovered 2 exits: *Sto x2) -8/Storage -7/Factory History --------- Turn | Location | Event 10 | -11/Junkyard | Discovered new exit (range 16) 39 | -11/Junkyard | Entered Materials 89 | -10/Materials | Identified exit to Mines 304 | -10/Materials | Discovered new exit (range 5) 309 | -10/Materials | Build established: Mutant 334 | -10/Materials | Entered Mines 341 | -10/Mines | Received a Rocket Launcher from a helpful Derelict 357 | -10/Mines | Met a Derelict bent on vengeance 372 | -10/Mines | Learned location of Storage (-8) 403 | -10/Mines | Received a Mining Laser from a helpful Derelict 489 | -10/Mines | Found a damaged Exp. Sensor Array with a note attached 491 | -10/Mines | Found Prototype Device 499 | -10/Mines | Deemed a non-threat by the Exiles lab entrance 499 | -10/Mines | Discovered new exit (range 5) 530 | -10/Mines | Entered Exiles 530 | -10/Exiles | Accompanied by 1 ally 545 | -10/Exiles | Met 8R-AWN 555 | -10/Exiles | Met EX-HEX 578 | -10/Exiles | Met EX-BIN 585 | -10/Exiles | Aligned with FarCom system 586 | -10/Exiles | Given EX-Vault access code 610 | -10/Exiles | Opened EX-Vault 615 | -10/Exiles | Found Chronowheel 628 | -10/Exiles | Warned to stay clear of 0b10 Research branches 644 | -10/Exiles | Met EX-DEC 651 | -10/Exiles | Learned location of Zion (-7) 675 | -10/Exiles | Visited The Gauntlet 703 | -10/Exiles | Activated Chronowheel 703 | -10/Exiles | Spacetime reconverged on an earlier point 772 | -10/Exiles | Found Superbattery 825 | -10/Exiles | Discovered new exit (range 14) 831 | -10/Exiles | Left Exiles lab with Superbattery 831 | -10/Exiles | Entered Mines 866 | -9/Mines | Discovered new exit (range 8) 872 | -9/Mines | Met a Derelict who couldn't figure out how to use a Trap Extractor 888 | -9/Mines | Entered Materials 888 | -8/Materials | Evolved 4 slots: Propulsion x2, Utility x2 981 | -8/Materials | Discovered new exit (range 7) 984 | -8/Materials | Discovered new exit (range 9) 984 | -8/Materials | Entered Storage 1127 | -8/Storage | Identified exit to Factory 1434 | -8/Storage | Core integrity fell below 50% 1460 | -8/Storage | Lost 5 parts (1n2u2w) 1694 | -8/Storage | Build established: Hacker-Mutant 1780 | -8/Storage | Lost 3 parts (1p1n1w) 2483 | -8/Storage | Met a pair of Derelict thieves 2507 | -8/Storage | Core integrity fell below 20% 2532 | -8/Storage | Lost 5 parts (1p2n2u) 2575 | -8/Storage | System corruption reached 10% 2593 | -8/Storage | Entered Factory 2593 | -7/Factory | Evolved 2 slots: Utility x2 2640 | -7/Factory | Repaired Assault Cannon 2882 | -7/Factory | Build established: Mutant 2978 | -7/Factory | Core integrity fell below 50% 3017 | -7/Factory | Lost 3 parts (1u2w) 3120 | -7/Factory | Core integrity fell below 20% 3181 | -7/Factory | Destroyed by P-60 Hacker with Shock Rifle Last Messages --------------- 03111_ Imp. Hover Unit destroyed. 03119_ Slug penetrates Y-54 Guardian. 03120_ System corrupted: Gauss Rifle jammed. 03122_ Slug penetrates Y-54 Guardian. 03124_ U-05 Engineer destroyed. 03126_ Slug penetrates Y-54 Guardian. 03130_ R-06 Scavenger collects Wheel. 03130_ Slug penetrates Y-54 Guardian. 03132_ Y-54 Guardian destroyed. 03135_ System corrupted: Component data lost. 03136_ Acquired 59 matter. 03136_ K-01 Serf collects debris. 03145_ R-06 Scavenger collects Imp. Deuterium Engine. 03148_ R-06 Scavenger collects Gatling Laser. 03148_ R-06 Scavenger collects Imp. Heat Sink. 03152_ K-01 Serf cleans the Terminal. 03156_ System corrupted: Matter fused (-8). 03165_ Connecting with Terminal... 03165_ K-01 Serf cleans the Terminal. 03171_ System corrupted: Matter fused (-7). Map ----- +----------------------------------------------------+ | """ !!! % %![ #???? | | """ !!! ######## #???? | | !! #??????# #???? | | #????### ###?? | | #????# #?? | | #### ###### #????# "" #?? | | ####+######+#+###??# T #?? | | # #??# #?? | | # """ """ """ #??# #?? | | # """ """ """????## ##?? | | # """ """ """ ????# r#??? | | # "" "" "" #???# #??? | | # "" "" "" #???#k #??? | | # #???# #??? | | # #???# #??? | | + #???#t #??? | | # #???# #??? | | " #################???# #??? | | " # #??????????# #??? | | " # """ ! #??????????# #??? | | "% # """ #??????????# ##?? | | %#%""" #??????????# T#?? | | %%+ %= #??????????# #?? | | %# """ #??????????# u##?? | | #[""" #??????????# #??? | | # """ #??????????#p@ #??? | | # #??????????+ #??? | | ##########??????????#u #??? | | #???????????????????#kk #??? | | #???????????????????# #??? | | #???????????????????# #??? | | #???????????????????# #??? | | #???????????????????# #??? | | ####???????????????????# #??? | | ???????????????????????# #??? | | ???????????????????????# #??? | | ???????????????????????+ #??? | | ???????????????????????# u#??? | | ???????????????????????? ???? | | ???????????????????????? ???? | | ???????????????????????? ???? | | ??????????????????????????????? | | ??????????????????????????????? | | ??????????????????????????????? | | ??????????????????????????????? | | ??????????????????????????????? | | ??????????????????????????????? | | ??????????????????????????????? | | ??????????????????????????????? | | ??????????????????????????????? | +----------------------------------------------------+ Best States ------------- Heat Dissipation 34 Energy Generation 15 Energy Capacity 265 Matter Stores 316 Matter Capacity 450 Sight Range 20 Terrain Scan Density 10 Additional Mass Support 9 Armor Coverage 150 Evasion (%) 63 Targeting Accuracy 8 Recoil Reduction 4 Offensive Hacking 10 Defensive Hacking 20 Item Schematics ----------------- VTOL Module | -7/Factory | Scanalyzed Hyb. Fission Core | -7/Factory | Hacked Robot Schematics ------------------ None Fabricated ------------ Nothing Alien Tech Used ----------------- None Achievements -------------- None Challenges ------------ None Game ------ Seed CorruptionMinesnifferStorm Manual? 0 Play Time 01:01:29 Cumulative 34.7 hours Start 2023.12.17 @ 05:16:37 End 2023.12.17 @ 06:18:21 Sessions 1 Manual Loads 0 Difficulty Rogue Special Mode None Game No. 21 Rogue 21 Adventurer 0 Explorer 0 Win Type - Total 0 Types 0/0/0/0/0/0/0/0/0 Lore% 24 Gallery% 32 Achievement% 30 Wizard Run 0 Options --------- ASCII 0 Keyboard 1 Movement Arrows Keybinds 0 Fullscreen 1 Font 12/Proggy Map View 83x54 Tactical HUD 1 Map Filters NONE Filters NONE Steam 0 RUN: d3984de2-220e-4bdd-b1fc-1a65948c354b